[Event "55th Rubinstein Memorial-C 2019"]
[Site "Polanica-Zdroj"]
[Date "2019.08.18"]
[Round "2.2"]
[White "Grossmann, Ryszard"]
[Black "Wilgosz, Jan"]
[Result "1-0"]
[ECO "A25"]
[WhiteElo "1975"]
[BlackElo "1569"]
[Annotator "NA"]
[PlyCount "59"]
[EventDate "2019.08.17"]
[EventType "swiss"]
[EventCountry "POL"]
[SourceTitle "playchess.com"]
[Source "ChessBase"]
[SourceQuality "1"]
[TimeControl "40/5400+30:1800+30"]

1. c4 {[%emt 0:03:07]} e5 {[%emt 0:00:00]} 2. Nc3 {[%emt 0:00:11]} Nc6 {[%emt 0:00:20]} 3. g3 {[%emt 0:00:18]} f5 {[%emt 0:00:48]} 4. d3 {[%emt 0:00:32]} Nf6 {[%emt 0:00:46]} 5. Bg2 {[%emt 0:00:08]} Bb4 {[%emt 0:02:21]} 6. Bd2 {[%emt 0:00:45]} O-O {[%emt 0:05:40]} 7. e3 {[%emt 0:01:37]} Bxc3 {[%emt 0:03:49]} 8. Bxc3 {[%emt 0:00:13]} d6 {[%emt 0:03:03]} 9. Ne2 {[%emt 0:02:45]} Qe8 {[%emt 0:04:06]} 10. Qc2 {[%emt 0:11:10]} a5 {[%emt 0:07:38]} 11. a3 {[%emt 0:11:05]} Kh8 {[%emt 0:14:34]} 12. Bd2 {[%emt 0:13:51]} f4 {[%emt 0:14:40]} 13. gxf4 {[%emt 0:09:22]} exf4 {[%emt 0:03:40]} 14. Nxf4 {[%emt 0:00:32]} Ng4 {[%emt 0:04:08]} 15. Be4 {[%emt 0:08:13]} Bf5 {[%emt 0:09:42]} 16. Bc3 {[%emt 0:03:05]} Nce5 {[%emt 0:10:30]} 17. O-O-O {[%emt 0:06:52]} Bxe4 {[%emt 0:01:26]} 18. dxe4 {[%emt 0:00:07]} Qc6 {[%emt 0:03:41]} 19. h3 {[%emt 0:03:10]} Nf6 {[%emt 0:00:48]} 20. Nd5 {[%emt 0:02:14]} Qxc4 {[%emt 0:01:53]} 21. f4 {[%emt 0:01:29]} Ned7 {[%emt 0:01:41]} 22. Rhg1 {[%emt 0:04:42]} b5 {[%emt 0:02:14]} 23. Rg2 {[%emt 0:02:07]} b4 {[%emt 0:03:01]} 24. Bxf6 {[%emt 0:00:27]} Qxc2+ {[%emt 0:00:11]} 25. Rxc2 {[%emt 0:00:15]} Nxf6 {[%emt 0:00:23]} 26. Nxc7 {[%emt 0:02:28]} Rac8 {[%emt 0:01:23]} 27. axb4 {[%emt 0:01:27]} axb4 {[%emt 0:00:22]} 28. Rd4 {[%emt 0:04:15]} Rf7 {[%emt 0:00:35]} 29. Nb5 {[%emt 0:00:41]} Re8 {[%emt 0:00:34]} 30. Nxd6 {[%emt 0:00:16]} 1-0

[Event "55th Rubinstein Memorial-C 2019"]
[Site "Polanica-Zdroj"]
[Date "2019.08.18"]
[Round "2.3"]
[White "Mulawa, Cyprian"]
[Black "Talik, Patryk"]
[Result "0-1"]
[ECO "C00"]
[WhiteElo "1578"]
[BlackElo "1975"]
[Annotator "NA"]
[PlyCount "98"]
[EventDate "2019.08.17"]
[EventType "swiss"]
[EventCountry "POL"]
[SourceTitle "playchess.com"]
[Source "ChessBase"]
[SourceQuality "1"]
[TimeControl "40/5400+30:1800+30"]

1. e4 {[%emt 0:00:00]} e6 {[%emt 0:06:36]} 2. d4 {[%emt 0:00:00]} d5 {[%emt 0:00:04]} 3. Bd3 {[%emt 0:00:00]} Nf6 {[%emt 0:00:09]} 4. e5 {[%emt 0:00:00]} Nfd7 {[%emt 0:00:05]} 5. f4 {[%emt 0:00:00]} c5 {[%emt 0:00:57]} 6. c3 {[%emt 0:00:00]} Nc6 {[%emt 0:00:21]} 7. Nf3 {[%emt 0:00:01]} cxd4 {[%emt 0:04:26]} 8. cxd4 {[%emt 0:00:04]} Qb6 {[%emt 0:00:49]} 9. Bc2 {[%emt 0:00:59]} Nb4 {[%emt 0:03:17]} 10. O-O {[%emt 0:00:15]} Nxc2 {[%emt 0:00:09]} 11. Qxc2 {[%emt 0:00:09]} Nb8 {[%emt 0:03:11]} 12. Be3 {[%emt 0:00:36]} Bd7 {[%emt 0:00:09]} 13. Nc3 {[%emt 0:00:14]} Nc6 {[%emt 0:06:03]} 14. Rad1 {[%emt 0:01:35]} Rc8 {[%emt 0:07:00]} 15. Qf2 {[%emt 0:04:11]} Ne7 {[%emt 0:08:49]} 16. g4 {[%emt 0:01:43]} h5 {[%emt 0:00:52]} 17. h3 {[%emt 0:00:54]} hxg4 {[%emt 0:00:06]} 18. hxg4 {[%emt 0:00:10]} g6 {[%emt 0:17:20]} 19. Nh4 {[%emt 0:01:57]} Kd8 {[%emt 0:00:30]} 20. Rc1 {[%emt 0:02:10]} Rc7 {[%emt 0:00:50]} 21. Nf3 {[%emt 0:05:51]} Be8 {[%emt 0:08:22]} 22. Ng5 {[%emt 0:01:39]} Kc8 {[%emt 0:01:01]} 23. a4 {[%emt 0:02:06]} a6 {[%emt 0:03:27]} 24. Na2 {[%emt 0:00:57]} Nc6 {[%emt 0:02:02]} 25. Rfd1 {[%emt 0:02:13]} Be7 {[%emt 0:00:57]} 26. Rc3 {[%emt 0:02:49]} Na5 {[%emt 0:02:26]} 27. Rxc7+ {[%emt 0:00:47]} Kxc7 {[%emt 0:00:09]} 28. Rc1+ {[%emt 0:00:10]} Kb8 {[%emt 0:00:50]} 29. Qc2 {[%emt 0:00:49]} Nc4 {[%emt 0:02:15]} 30. Bf2 {[%emt 0:01:01]} Qxb2 {[%emt 0:00:18]} 31. Qxb2 {[%emt 0:00:39]} Nxb2 {[%emt 0:00:04]} 32. Rc3 {[%emt 0:02:46]} Nxa4 {[%emt 0:00:36]} 33. Rb3 {[%emt 0:00:10]} Ka7 {[%emt 0:00:38]} 34. Be1 {[%emt 0:00:22]} Nb6 {[%emt 0:01:19]} 35. Ba5 {[%emt 0:00:41]} Nc4 {[%emt 0:00:13]} 36. Bb4 {[%emt 0:01:14]} Bxb4 {[%emt 0:00:32]} 37. Nxb4 {[%emt 0:00:12]} Rh4 {[%emt 0:00:34]} 38. Rg3 {[%emt 0:00:45]} a5 {[%emt 0:00:44]} 39. Nd3 {[%emt 0:01:53]} b5 {[%emt 0:00:34]} 40. Nc5 {[%emt 0:00:06]} b4 {[%emt 0:00:35]} 41. Ngxe6 {[%emt 0:30:18]} fxe6 {[%emt 0:30:14]} 42. Nxe6 {[%emt 0:00:26]} a4 {[%emt 0:01:36]} 43. Nc5 {[%emt 0:01:21]} a3 {[%emt 0:01:08]} 44. e6 {[%emt 0:00:36]} a2 {[%emt 0:00:54]} 45. Nb3 {[%emt 0:00:06]} Nd2 {[%emt 0:00:30]} 46. Na1 {[%emt 0:00:25]} b3 {[%emt 0:00:33]} 47. f5 {[%emt 0:00:05]} Rxg4 {[%emt 0:00:27]} 48. Rxg4 {[%emt 0:00:10]} b2 {[%emt 0:00:08]} 49. fxg6 {[%emt 0:00:09]} bxa1=Q+ {[%emt 0:00:09]} 0-1

[Event "55th Rubinstein Memorial-C 2019"]
[Site "Polanica-Zdroj"]
[Date "2019.08.18"]
[Round "2.4"]
[White "Wziatek, Marek"]
[Black "Szczesniak, Andrzej"]
[Result "0-1"]
[ECO "A21"]
[WhiteElo "1568"]
[BlackElo "1954"]
[Annotator "NA"]
[PlyCount "68"]
[EventDate "2019.08.17"]
[EventType "swiss"]
[EventCountry "POL"]
[SourceTitle "playchess.com"]
[Source "ChessBase"]
[SourceQuality "1"]
[TimeControl "40/5400+30:1800+30"]

1. c4 {[%emt 0:00:22]} e5 {[%emt 0:00:00]} 2. Nc3 {[%emt 0:00:06]} Bb4 {[%emt 0:00:00]} 3. Nd5 {[%emt 0:01:12]} Bc5 {[%emt 0:00:03]} 4. e3 {[%emt 0:00:44]} Nf6 {[%emt 0:02:27]} 5. b4 {[%emt 0:05:35]} Be7 {[%emt 0:05:28]} 6. Rb1 {[%emt 0:02:09]} c6 {[%emt 0:02:25]} 7. Nxe7 {[%emt 0:02:05]} Qxe7 {[%emt 0:00:24]} 8. d4 {[%emt 0:02:14]} d6 {[%emt 0:02:57]} 9. dxe5 {[%emt 0:03:51]} dxe5 {[%emt 0:01:28]} 10. Qc2 {[%emt 0:08:36]} O-O {[%emt 0:01:31]} 11. f3 {[%emt 0:02:06]} a5 {[%emt 0:18:43]} 12. a3 {[%emt 0:02:57]} axb4 {[%emt 0:07:28]} 13. axb4 {[%emt 0:00:02]} Rd8 {[%emt 0:00:49]} 14. Ne2 {[%emt 0:00:42]} Na6 {[%emt 0:02:00]} 15. Bd2 {[%emt 0:04:03]} e4 {[%emt 0:04:14]} 16. Ng3 {[%emt 0:03:46]} exf3 {[%emt 0:05:28]} 17. gxf3 {[%emt 0:00:02]} c5 {[%emt 0:00:22]} 18. bxc5 {[%emt 0:14:13]} Nxc5 {[%emt 0:00:40]} 19. Kf2 {[%emt 0:00:48]} Re8 {[%emt 0:13:46]} 20. Be2 {[%emt 0:08:13]} Bh3 {[%emt 0:01:45]} 21. Rhe1 {[%emt 0:06:45]} h5 {[%emt 0:01:11]} 22. Bf1 {[%emt 0:00:43]} Bd7 {[%emt 0:01:50]} 23. Bc3 {[%emt 0:01:55]} h4 {[%emt 0:02:40]} 24. Nf5 {[%emt 0:02:15]} Nfe4+ {[%emt 0:06:51]} 25. fxe4 {[%emt 0:05:28]} Nxe4+ {[%emt 0:00:24]} 26. Kg1 {[%emt 0:00:53]} Bxf5 {[%emt 0:00:49]} 27. Bb4 {[%emt 0:01:04]} Qe6 {[%emt 0:01:25]} 28. Rb2 {[%emt 0:03:16]} h3 {[%emt 0:00:42]} 29. Bd3 {[%emt 0:01:58]} Rad8 {[%emt 0:03:15]} 30. Rb3 {[%emt 0:02:01]} Qg6+ {[%emt 0:00:49]} 31. Kf1 {[%emt 0:05:24]} Rxd3 {[%emt 0:05:25]} 32. Rxd3 {[%emt 0:02:34]} Ng3+ {[%emt 0:00:09]} 33. Kf2 {[%emt 0:01:14]} Bxd3 {[%emt 0:00:10]} 34. Qa4 {[%emt 0:00:15]} Ne4+ {[%emt 0:00:23]} 0-1

[Event "55th Rubinstein Memorial-C 2019"]
[Site "Polanica-Zdroj"]
[Date "2019.08.18"]
[Round "2.5"]
[White "Kucharski, Daniel"]
[Black "Kardys, Zbigniew"]
[Result "0-1"]
[ECO "A04"]
[WhiteElo "1567"]
[BlackElo "1949"]
[Annotator "NA"]
[PlyCount "80"]
[EventDate "2019.08.17"]
[EventType "swiss"]
[EventCountry "POL"]
[SourceTitle "playchess.com"]
[Source "ChessBase"]
[SourceQuality "1"]
[TimeControl "40/5400+30:1800+30"]

1. Nf3 {[%emt 0:00:00]} c5 {[%emt 0:00:31]} 2. g3 {[%emt 0:01:15]} b6 {[%emt 0:06:35]} 3. Bg2 {[%emt 0:02:15]} Bb7 {[%emt 0:00:03]} 4. d4 {[%emt 0:00:15]} cxd4 {[%emt 0:00:52]} 5. Qxd4 {[%emt 0:00:56]} Nc6 {[%emt 0:00:45]} 6. Qa4 {[%emt 0:01:46]} Nf6 {[%emt 0:09:50]} 7. O-O {[%emt 0:02:08]} e6 {[%emt 0:07:08]} 8. Rd1 {[%emt 0:11:23]} Qc8 {[%emt 0:10:06]} 9. Nc3 {[%emt 0:02:40]} a6 {[%emt 0:03:48]} 10. Bg5 {[%emt 0:06:34]} b5 {[%emt 0:06:45]} 11. Qf4 {[%emt 0:02:43]} Qb8 {[%emt 0:06:23]} 12. Bxf6 {[%emt 0:16:40]} Qxf4 {[%emt 0:02:09]} 13. gxf4 {[%emt 0:00:55]} gxf6 {[%emt 0:00:10]} 14. Ne4 {[%emt 0:00:44]} Be7 {[%emt 0:12:02]} 15. Nd6+ {[%emt 0:02:18]} Bxd6 {[%emt 0:00:13]} 16. Rxd6 {[%emt 0:00:05]} Rg8 {[%emt 0:03:19]} 17. Kf1 {[%emt 0:00:58]} O-O-O {[%emt 0:07:10]} 18. c3 {[%emt 0:08:37]} Kc7 {[%emt 0:01:29]} 19. Rad1 {[%emt 0:04:01]} Ne7 {[%emt 0:00:54]} 20. R6d2 {[%emt 0:02:47]} d5 {[%emt 0:04:13]} 21. Ra1 {[%emt 0:03:41]} Nf5 {[%emt 0:01:58]} 22. a4 {[%emt 0:03:42]} Rg4 {[%emt 0:02:01]} 23. e3 {[%emt 0:07:06]} d4 {[%emt 0:02:18]} 24. Bh3 {[%emt 0:03:06]} Bxf3 {[%emt 0:00:54]} 25. Bxg4 {[%emt 0:00:03]} Bxg4 {[%emt 0:00:07]} 26. cxd4 {[%emt 0:00:20]} Kb6 {[%emt 0:01:38]} 27. axb5 {[%emt 0:02:22]} axb5 {[%emt 0:00:11]} 28. Rc2 {[%emt 0:00:12]} Bf3 {[%emt 0:00:07]} 29. b4 {[%emt 0:01:24]} Ne7 {[%emt 0:02:10]} 30. Rc5 {[%emt 0:01:18]} Nc6 {[%emt 0:04:23]} 31. h3 {[%emt 0:05:37]} Rg8 {[%emt 0:00:35]} 32. Rac1 {[%emt 0:00:13]} Rg6 {[%emt 0:01:06]} 33. f5 {[%emt 0:01:45]} Rh6 {[%emt 0:00:32]} 34. fxe6 {[%emt 0:01:05]} fxe6 {[%emt 0:00:02]} 35. Ke1 {[%emt 0:00:59]} Rxh3 {[%emt 0:00:26]} 36. Kd2 {[%emt 0:00:27]} Rh2 {[%emt 0:00:58]} 37. e4 {[%emt 0:00:32]} Bxe4 {[%emt 0:00:26]} 38. Ke3 {[%emt 0:00:06]} Bd5 {[%emt 0:00:39]} 39. f4 {[%emt 0:01:01]} Rh3+ {[%emt 0:00:31]} 40. Ke2 {[%emt 0:00:28]} Nxd4+ {[%emt 0:00:05]} 0-1

[Event "55th Rubinstein Memorial-C 2019"]
[Site "Polanica-Zdroj"]
[Date "2019.08.18"]
[Round "2.6"]
[White "Simon, Marek"]
[Black "Kozlowski, Andrzej"]
[Result "0-1"]
[ECO "A90"]
[WhiteElo "1879"]
[BlackElo "1566"]
[Annotator "NA"]
[PlyCount "68"]
[EventDate "2019.08.17"]
[EventType "swiss"]
[EventCountry "POL"]
[SourceTitle "playchess.com"]
[Source "ChessBase"]
[SourceQuality "1"]
[TimeControl "40/5400+30:1800+30"]

1. d4 {[%emt 0:00:00]} e6 {[%emt 0:06:59]} 2. c4 {[%emt 0:00:00]} f5 {[%emt 0:00:04]} 3. g3 {[%emt 0:00:00]} Nf6 {[%emt 0:00:11]} 4. Bg2 {[%emt 0:00:04]} Bb4+ {[%emt 0:00:24]} 5. Bd2 {[%emt 0:03:12]} Bxd2+ {[%emt 0:00:20]} 6. Qxd2 {[%emt 0:04:29]} O-O {[%emt 0:00:25]} 7. Nc3 {[%emt 0:00:43]} d5 {[%emt 0:00:46]} 8. Nf3 {[%emt 0:02:44]} Nbd7 {[%emt 0:01:02]} 9. O-O {[%emt 0:00:44]} dxc4 {[%emt 0:00:35]} 10. e3 {[%emt 0:26:04]} Rb8 {[%emt 0:05:11]} 11. a4 {[%emt 0:13:26]} a6 {[%emt 0:02:00]} 12. Qe2 {[%emt 0:03:48]} b5 {[%emt 0:01:14]} 13. axb5 {[%emt 0:00:42]} axb5 {[%emt 0:00:24]} 14. Ng5 {[%emt 0:08:16]} Qe7 {[%emt 0:03:15]} 15. Bc6 {[%emt 0:04:24]} h6 {[%emt 0:03:50]} 16. Nf3 {[%emt 0:02:11]} b4 {[%emt 0:02:53]} 17. Na4 {[%emt 0:01:51]} Ba6 {[%emt 0:02:08]} 18. Nd2 {[%emt 0:03:49]} Nb6 {[%emt 0:11:44]} 19. Nc5 {[%emt 0:00:21]} Bc8 {[%emt 0:05:08]} 20. Nxc4 {[%emt 0:00:30]} Nbd7 {[%emt 0:02:14]} 21. Na6 {[%emt 0:04:44]} Bxa6 {[%emt 0:01:38]} 22. Rxa6 {[%emt 0:00:04]} e5 {[%emt 0:02:02]} 23. dxe5 {[%emt 0:03:24]} Nxe5 {[%emt 0:00:34]} 24. Nxe5 {[%emt 0:02:15]} Qxe5 {[%emt 0:00:13]} 25. Qc4+ {[%emt 0:02:36]} Kh8 {[%emt 0:01:38]} 26. b3 {[%emt 0:00:20]} Rfd8 {[%emt 0:04:18]} 27. Rfa1 {[%emt 0:04:47]} Qb2 {[%emt 0:04:09]} 28. Ra8 {[%emt 0:00:49]} Rxa8 {[%emt 0:02:25]} 29. Rxa8 {[%emt 0:00:08]} Rxa8 {[%emt 0:00:13]} 30. Bxa8 {[%emt 0:00:02]} Qa1+ {[%emt 0:00:36]} 31. Kg2 {[%emt 0:00:14]} Qxa8+ {[%emt 0:00:10]} 32. f3 {[%emt 0:00:18]} Ng4 {[%emt 0:02:36]} 33. Kh3 {[%emt 0:01:47]} Qxf3 {[%emt 0:00:49]} 34. Qc2 {[%emt 0:01:29]} Nf2+ {[%emt 0:00:25]} 0-1

[Event "55th Rubinstein Memorial-C 2019"]
[Site "Polanica-Zdroj"]
[Date "2019.08.18"]
[Round "2.7"]
[White "Halhoul, Adam"]
[Black "Sroka, Janusz"]
[Result "0-1"]
[ECO "A53"]
[WhiteElo "1563"]
[BlackElo "1875"]
[Annotator "NA"]
[PlyCount "84"]
[EventDate "2019.08.17"]
[EventType "swiss"]
[EventCountry "POL"]
[SourceTitle "playchess.com"]
[Source "ChessBase"]
[SourceQuality "1"]
[TimeControl "40/5400+30:1800+30"]

1. d4 {[%emt 0:00:00]} Nf6 {[%emt 0:00:06]} 2. c4 {[%emt 0:00:19]} d6 {[%emt 0:00:08]} 3. Nc3 {[%emt 0:00:07]} Nbd7 {[%emt 0:00:09]} 4. e4 {[%emt 0:00:34]} e5 {[%emt 0:00:05]} 5. Nf3 {[%emt 0:00:48]} Be7 {[%emt 0:00:05]} 6. Be2 {[%emt 0:00:23]} O-O {[%emt 0:00:05]} 7. O-O {[%emt 0:00:12]} Re8 {[%emt 0:00:05]} 8. Re1 {[%emt 0:00:50]} h6 {[%emt 0:00:06]} 9. Bf1 {[%emt 0:01:25]} Bf8 {[%emt 0:04:47]} 10. d5 {[%emt 0:00:28]} g6 {[%emt 0:02:50]} 11. Bd2 {[%emt 0:04:39]} Bg7 {[%emt 0:00:27]} 12. b4 {[%emt 0:00:33]} Rf8 {[%emt 0:03:47]} 13. Qc2 {[%emt 0:02:43]} Nh5 {[%emt 0:03:05]} 14. g3 {[%emt 0:06:10]} a6 {[%emt 0:14:41]} 15. Na4 {[%emt 0:04:00]} f5 {[%emt 0:01:51]} 16. Nh4 {[%emt 0:05:57]} Qf6 {[%emt 0:00:50]} 17. c5 {[%emt 0:07:35]} f4 {[%emt 0:06:56]} 18. Bc3 {[%emt 0:01:22]} b5 {[%emt 0:06:24]} 19. Nb2 {[%emt 0:04:44]} Rf7 {[%emt 0:06:23]} 20. a4 {[%emt 0:02:02]} bxa4 {[%emt 0:00:33]} 21. Rxa4 {[%emt 0:01:04]} Kh7 {[%emt 0:01:44]} 22. Nd3 {[%emt 0:05:02]} Qe7 {[%emt 0:04:05]} 23. Bh3 {[%emt 0:03:49]} fxg3 {[%emt 0:03:23]} 24. hxg3 {[%emt 0:01:15]} Nxc5 {[%emt 0:05:11]} 25. Nf5 {[%emt 0:07:50]} gxf5 {[%emt 0:05:40]} 26. bxc5 {[%emt 0:00:55]} f4 {[%emt 0:02:26]} 27. Bxc8 {[%emt 0:06:50]} Rxc8 {[%emt 0:00:07]} 28. Qe2 {[%emt 0:03:09]} Qg5 {[%emt 0:03:56]} 29. Bd2 {[%emt 0:01:46]} Qg6 {[%emt 0:00:52]} 30. f3 {[%emt 0:04:07]} fxg3 {[%emt 0:03:36]} 31. Rc1 {[%emt 0:02:55]} Rcf8 {[%emt 0:00:26]} 32. Ne1 {[%emt 0:00:18]} Bf6 {[%emt 0:06:02]} 33. cxd6 {[%emt 0:01:37]} cxd6 {[%emt 0:00:02]} 34. Rxa6 {[%emt 0:00:20]} Bg5 {[%emt 0:04:42]} 35. Rcc6 {[%emt 0:00:56]} Rf6 {[%emt 0:01:00]} 36. Bb4 {[%emt 0:03:07]} Nf4 {[%emt 0:01:48]} 37. Qb5 {[%emt 0:00:55]} Qh5 {[%emt 0:00:40]} 38. Rc2 {[%emt 0:01:00]} Nh3+ {[%emt 0:00:14]} 39. Kf1 {[%emt 0:01:18]} Rxf3+ {[%emt 0:00:10]} 40. Nxf3 {[%emt 0:00:10]} Qxf3+ {[%emt 0:00:03]} 41. Ke1 {[%emt 0:30:22]} Qh1+ {[%emt 0:30:02]} 42. Ke2 {[%emt 0:01:28]} Qf1# {Ke1} 0-1

[Event "55th Rubinstein Memorial-C 2019"]
[Site "Polanica-Zdroj"]
[Date "2019.08.18"]
[Round "2.8"]
[White "Obrochta, Lena"]
[Black "Lewandowski, Witold"]
[Result "1-0"]
[ECO "B34"]
[WhiteElo "1870"]
[BlackElo "1542"]
[Annotator "NA"]
[PlyCount "106"]
[EventDate "2019.08.17"]
[EventType "swiss"]
[EventCountry "POL"]
[SourceTitle "playchess.com"]
[Source "ChessBase"]
[SourceQuality "1"]
[TimeControl "40/5400+30:1800+30"]

1. e4 {[%emt 0:00:00]} c5 {[%emt 0:00:00]} 2. Nf3 {[%emt 0:00:00]} Nc6 {[%emt 0:00:00]} 3. d4 {[%emt 0:00:00]} cxd4 {[%emt 0:00:00]} 4. Nxd4 {[%emt 0:00:00]} g6 {[%emt 0:00:07]} 5. Nc3 {[%emt 0:01:14]} Bg7 {[%emt 0:00:14]} 6. Be3 {[%emt 0:01:06]} Nf6 {[%emt 0:00:25]} 7. Be2 {[%emt 0:00:54]} O-O {[%emt 0:00:25]} 8. O-O {[%emt 0:00:38]} d5 {[%emt 0:00:35]} 9. exd5 {[%emt 0:09:13]} Nxd5 {[%emt 0:00:21]} 10. Nxd5 {[%emt 0:00:29]} Qxd5 {[%emt 0:00:19]} 11. Bf3 {[%emt 0:00:24]} Qa5 {[%emt 0:02:52]} 12. Nxc6 {[%emt 0:11:09]} bxc6 {[%emt 0:00:19]} 13. c3 {[%emt 0:15:24]} Rb8 {[%emt 0:05:31]} 14. Qc1 {[%emt 0:09:14]} c5 {[%emt 0:05:48]} 15. Rd1 {[%emt 0:04:50]} Be6 {[%emt 0:07:38]} 16. a3 {[%emt 0:09:34]} c4 {[%emt 0:04:53]} 17. Qd2 {[%emt 0:06:55]} a6 {[%emt 0:17:11]} 18. Ba7 {[%emt 0:06:03]} Rbd8 {[%emt 0:02:55]} 19. Qe2 {[%emt 0:01:43]} Rxd1+ {[%emt 0:01:28]} 20. Rxd1 {[%emt 0:01:07]} Rd8 {[%emt 0:00:58]} 21. h3 {[%emt 0:05:56]} Rxd1+ {[%emt 0:04:15]} 22. Qxd1 {[%emt 0:00:05]} Qc7 {[%emt 0:00:17]} 23. Be3 {[%emt 0:03:01]} Qd7 {[%emt 0:03:43]} 24. Qxd7 {[%emt 0:02:29]} Bxd7 {[%emt 0:00:08]} 25. Bd5 {[%emt 0:00:37]} Bb5 {[%emt 0:05:43]} 26. a4 {[%emt 0:00:54]} Bxa4 {[%emt 0:00:09]} 27. Bxc4 {[%emt 0:00:05]} Bb5 {[%emt 0:00:09]} 28. Ba2 {[%emt 0:03:56]} Kf8 {[%emt 0:05:10]} 29. Bd2 {[%emt 0:02:05]} Ke8 {[%emt 0:02:52]} 30. c4 {[%emt 0:01:19]} Bc6 {[%emt 0:00:10]} 31. b4 {[%emt 0:00:23]} Bd4 {[%emt 0:03:25]} 32. Bb1 {[%emt 0:01:24]} e5 {[%emt 0:01:41]} 33. Kf1 {[%emt 0:00:36]} e4 {[%emt 0:03:00]} 34. Ke2 {[%emt 0:01:15]} Ke7 {[%emt 0:02:24]} 35. Be3 {[%emt 0:02:04]} Bc3 {[%emt 0:01:17]} 36. Bc5+ {[%emt 0:00:06]} Ke6 {[%emt 0:00:47]} 37. Ke3 {[%emt 0:01:10]} Ke5 {[%emt 0:02:50]} 38. Bf8 {[%emt 0:00:28]} Bd4+ {[%emt 0:00:42]} 39. Ke2 {[%emt 0:00:27]} Ke6 {[%emt 0:02:15]} 40. g4 {[%emt 0:01:01]} f5 {[%emt 0:00:44]} 41. Bh6 {[%emt 0:30:19]} Bc3 {[%emt 0:31:02]} 42. Bf8 {[%emt 0:00:15]} f4 {[%emt 0:01:11]} 43. Bc2 {[%emt 0:00:26]} Bd4 {[%emt 0:00:59]} 44. Bh6 {[%emt 0:00:38]} f3+ {[%emt 0:02:15]} 45. Kf1 {[%emt 0:00:17]} Bf6 {[%emt 0:00:50]} 46. Be3 {[%emt 0:00:47]} Bc3 {[%emt 0:05:40]} 47. Bc5 {[%emt 0:00:14]} Ke5 {[%emt 0:01:45]} 48. Bb3 {[%emt 0:00:54]} Bd4 {[%emt 0:02:35]} 49. Bf8 {[%emt 0:00:30]} Kf6 {[%emt 0:01:28]} 50. h4 {[%emt 0:00:47]} e3 {[%emt 0:01:22]} 51. fxe3 {[%emt 0:00:12]} Bxe3 {[%emt 0:00:04]} 52. Bc2 {[%emt 0:00:33]} Bd7 {[%emt 0:03:09]} 53. g5+ Ke5 1-0

[Event "55th Rubinstein Memorial-C 2019"]
[Site "Polanica-Zdroj"]
[Date "2019.08.18"]
[Round "2.9"]
[White "Kaliszuk, Kamil"]
[Black "Kazmierowski, Tymon"]
[Result "1-0"]
[ECO "A35"]
[WhiteElo "1853"]
[BlackElo "1532"]
[Annotator "NA"]
[PlyCount "97"]
[EventDate "2019.08.17"]
[EventType "swiss"]
[EventCountry "POL"]
[SourceTitle "playchess.com"]
[Source "ChessBase"]
[SourceQuality "1"]
[TimeControl "40/5400+30:1800+30"]

1. c4 {[%emt 0:00:00]} c5 {[%emt 0:00:00]} 2. Nc3 {[%emt 0:00:00]} Nc6 {[%emt 0:00:00]} 3. Nf3 {[%emt 0:00:04]} g6 {[%emt 0:00:00]} 4. e4 {[%emt 0:02:21]} Bg7 {[%emt 0:00:05]} 5. Be2 {[%emt 0:00:24]} e6 {[%emt 0:00:20]} 6. O-O {[%emt 0:00:11]} Nge7 {[%emt 0:00:08]} 7. d3 {[%emt 0:00:27]} O-O {[%emt 0:00:23]} 8. Be3 {[%emt 0:00:36]} b6 {[%emt 0:01:06]} 9. d4 {[%emt 0:00:53]} cxd4 {[%emt 0:00:36]} 10. Nxd4 {[%emt 0:00:03]} Bb7 {[%emt 0:01:11]} 11. Qd2 {[%emt 0:03:23]} a6 {[%emt 0:07:16]} 12. Rad1 {[%emt 0:00:23]} Qc7 {[%emt 0:02:37]} 13. Nb3 {[%emt 0:05:26]} Rfd8 {[%emt 0:06:23]} 14. f4 {[%emt 0:15:23]} d6 {[%emt 0:06:26]} 15. Qe1 {[%emt 0:01:26]} f5 {[%emt 0:04:54]} 16. Qf2 {[%emt 0:04:14]} Rf8 {[%emt 0:06:13]} 17. Bxb6 {[%emt 0:00:43]} Qb8 {[%emt 0:00:24]} 18. exf5 {[%emt 0:05:34]} Nxf5 {[%emt 0:00:09]} 19. g4 {[%emt 0:00:24]} Nfe7 {[%emt 0:00:56]} 20. Qe3 {[%emt 0:02:41]} e5 {[%emt 0:02:10]} 21. Qd2 {[%emt 0:04:42]} exf4 {[%emt 0:09:09]} 22. Rxf4 {[%emt 0:10:03]} Rxf4 {[%emt 0:00:28]} 23. Qxf4 {[%emt 0:02:48]} Be5 {[%emt 0:00:06]} 24. Qf2 {[%emt 0:01:06]} Qe8 {[%emt 0:04:50]} 25. Rf1 {[%emt 0:10:27]} Bc8 {[%emt 0:07:24]} 26. Ne4 {[%emt 0:04:22]} Be6 {[%emt 0:05:19]} 27. Nf6+ {[%emt 0:00:30]} Bxf6 {[%emt 0:00:02]} 28. Qxf6 {[%emt 0:00:01]} Bf7 {[%emt 0:00:46]} 29. Nd2 {[%emt 0:10:13]} Nc8 {[%emt 0:01:54]} 30. Bf3 {[%emt 0:05:39]} Nxb6 {[%emt 0:00:10]} 31. Bxc6 {[%emt 0:00:01]} Qe6 {[%emt 0:01:52]} 32. Qxe6 {[%emt 0:00:17]} Bxe6 {[%emt 0:00:08]} 33. Bxa8 {[%emt 0:00:06]} Nxa8 {[%emt 0:00:08]} 34. Rf6 {[%emt 0:00:20]} Nc7 {[%emt 0:00:08]} 35. h3 {[%emt 0:00:53]} Kg7 {[%emt 0:00:08]} 36. Rf3 {[%emt 0:00:07]} d5 {[%emt 0:00:48]} 37. b3 {[%emt 0:00:10]} Kh6 {[%emt 0:00:47]} 38. Kf2 {[%emt 0:00:43]} Kg5 {[%emt 0:00:13]} 39. Ke3 {[%emt 0:00:10]} Kh4 {[%emt 0:00:53]} 40. Kd4 {[%emt 0:00:08]} dxc4 {[%emt 0:00:12]} 41. bxc4 {[%emt 0:30:09]} h5 {[%emt 0:30:09]} 42. gxh5 {[%emt 0:00:12]} gxh5 {[%emt 0:00:04]} 43. Kc5 {[%emt 0:00:29]} Bxh3 {[%emt 0:00:34]} 44. Kb6 {[%emt 0:00:10]} Bg2 {[%emt 0:00:31]} 45. Rf2 {[%emt 0:00:49]} Kg3 {[%emt 0:00:07]} 46. Re2 {[%emt 0:01:55]} h4 {[%emt 0:01:35]} 47. Ne4+ {[%emt 0:01:31]} Kf3 {[%emt 0:00:10]} 48. Rf2+ {[%emt 0:00:01]} Kxe4 {[%emt 0:00:50]} 49. Rxg2 {[%emt 0:00:01] Kd5} 1-0